bitfinex/quotes_BTCUSD_20251215
["timestamp","ask_amount","ask_price","bid_price","bid_amount"]
[1765812602080,0.23010987,86915.0,86913.0,0.0730299]
[1765812602272,0.05745009,86913.0,86911.0,0.01864]
[1765812602473,0.23014876,86901.0,86899.0,0.01403399]
[1765812602767,0.23014876,86901.0,86898.0,0.029557]
[1765812602768,0.2301507,86900.0,86898.0,0.010917]
[1765812602970,0.24167875,86893.0,86887.0,0.0416584]
[1765812603136,0.24167875,86893.0,86887.0,0.01864]
[1765812603137,0.23018138,86888.0,86887.0,0.01864]
[1765812603337,0.23022377,86872.0,86870.0,0.03117]
[1765812603547,0.01151026,86879.0,86871.0,0.0742]
[1765812603812,0.34522434,86901.0,86871.0,0.0742]
[1765812603813,0.01150827,86894.0,86872.0,0.03355937]
[1765812604130,0.01150986,86882.0,86878.0,0.00161287]
[1765812604337,0.01150986,86882.0,86872.0,0.03355937]
[1765812604338,0.23021458,86876.0,86872.0,0.010537]
[1765812604542,0.01151092,86874.0,86870.0,0.01864]
[1765812604670,0.01151092,86874.0,86863.0,0.03146]
[1765812604671,0.01151198,86866.0,86863.0,0.05448476]
[1765812604879,0.01151251,86862.0,86856.0,0.05273]
[1765812605085,0.01151211,86865.0,86857.0,0.03146]
[1765812605283,0.01151383,86852.0,86843.0,0.03278]
[1765812605487,0.01151251,86862.0,86847.0,0.00161287]
[1765812605693,0.2907,86869.0,86847.0,0.00161287]
[1765812605694,0.23026978,86855.0,86848.0,0.02302873]
[1765812605943,0.23026158,86858.0,86848.0,0.0742]
[1765812606136,0.23027944,86851.0,86849.0,0.03805466]
[1765812606333,0.23027944,86851.0,86809.0,0.2907]
[1765812606334,0.01151596,86836.0,86818.0,0.23036444]
[1765812606660,0.23030596,86841.0,86833.0,0.09284]
[1765812606816,0.01151596,86836.0,86833.0,0.09284]
[1765812607019,0.01151383,86852.0,86834.0,0.09723245]
[1765812607234,0.2907,86867.0,86834.0,0.09723245]
[1765812607235,0.2302831,86850.0,86834.0,0.09884532]
[1765812607578,0.01151649,86832.0,86826.0,0.01]
[1765812607783,0.01151543,86840.0,86827.0,0.10829]
[1765812608075,0.001,86841.0,86828.0,0.06224138]
[1765812608282,0.001,86841.0,86828.0,0.11615804]
[1765812608500,0.01151596,86836.0,86828.0,0.11615804]
[1765812608664,0.01151662,86831.0,86828.0,0.00161287]
[1765812608867,0.1152,86829.0,86828.0,0.00161287]
[1765812609194,0.23034012,86829.0,86827.0,0.05273]
[1765812609339,0.01151675,86830.0,86827.0,0.01864]
[1765812609540,0.34554044,86828.0,86827.0,0.01864]
[1765812609784,0.1152,86827.0,86826.0,0.014]
[1765812609941,0.23034044,86828.0,86827.0,0.001]
[1765812610372,0.2907,86827.0,86826.0,0.014]
[1765812610568,0.2907,86827.0,86826.0,0.01244398]
[1765812610569,0.3614,86827.0,86826.0,0.01244398]
[1765812610771,0.41895,86827.0,86826.0,0.01244398]
[1765812610976,0.01152126,86796.0,86793.0,0.01864]
[1765812611221,0.01151821,86819.0,86795.0,0.00161287]
[1765812611425,0.01151781,86822.0,86803.0,0.01152033]
[1765812611681,0.01151781,86822.0,86818.0,0.00844]
[1765812611822,0.01151768,86823.0,86818.0,0.00844]
[1765812611823,0.1152,86823.0,86819.0,0.01864]
[1765812612027,0.1152,86823.0,86819.0,0.02025287]
[1765812612028,0.01151768,86823.0,86819.0,0.02025287]
[1765812612249,0.24187616,86822.0,86819.0,0.02025287]
[1765812612445,0.23036166,86820.0,86819.0,0.01864]
[1765812612685,0.24188066,86820.0,86819.0,0.01864]
[1765812613024,0.72736161,86830.0,86805.0,0.02304014]
[1765812613025,0.01151967,86808.0,86805.0,0.02304014]
[1765812613222,0.0115198,86807.0,86806.0,0.01864]
[1765812613474,0.0115198,86807.0,86804.0,0.03409]
[1765812613475,0.1152,86805.0,86804.0,0.03409]
[1765812613686,0.01151901,86813.0,86804.0,0.03409]
[1765812613687,0.01151901,86813.0,86806.0,0.01864]
[1765812613902,0.01864,86840.0,86806.0,0.02025287]
[1765812613903,0.01151861,86816.0,86806.0,0.02025287]
[1765812614077,0.01151755,86824.0,86807.0,0.09723961]
[1765812614234,0.23036509,86819.0,86808.0,0.0163103]
[1765812614440,0.01151808,86820.0,86808.0,0.00161287]
[1765812614642,0.23035905,86821.0,86808.0,0.00161287]
[1765812614843,0.01152073,86800.0,86797.0,0.03409]
[1765812615056,0.01152073,86800.0,86798.0,0.01864]
[1765812615258,0.011521,86798.0,86784.0,0.02304572]
[1765812615457,0.26647332,86793.0,86780.0,0.0007]
[1765812615662,0.38605332,86793.0,86780.0,0.0007]
[1765812615891,0.73430332,86793.0,86780.0,0.0007]
[1765812616087,0.74307332,86793.0,86780.0,0.0007]
[1765812616287,0.62787332,86793.0,86780.0,0.0007]
[1765812616799,0.0115214,86795.0,86792.0,0.00446281]
[1765812617029,0.23043263,86794.0,86792.0,0.00284994]
[1765812617261,0.1152,86794.0,86793.0,0.0742]
[1765812617482,0.01152126,86796.0,86792.0,0.00446281]
[1765812617483,0.23043332,86793.0,86792.0,0.00284994]
[1765812617703,0.34563332,86793.0,86792.0,0.00284994]
[1765812617928,0.34863332,86793.0,86792.0,0.00284994]
[1765812618152,0.003,86793.0,86792.0,0.07866281]
[1765812618382,0.03604,86857.0,86797.0,0.01152113]
[1765812618383,0.1152,86810.0,86797.0,0.01152113]
[1765812618647,0.01151808,86820.0,86802.0,0.01152047]
[1765812618853,0.01151861,86816.0,86809.0,0.00161287]
[1765812619069,0.23036629,86819.0,86803.0,0.02304067]
[1765812619282,0.01151848,86817.0,86809.0,0.00161287]
[1765812619498,0.03450755,86838.0,86809.0,0.00161287]
[1765812619718,0.23040084,86806.0,86804.0,0.01274414]
[1765812619933,0.01152007,86805.0,86793.0,0.02304333]
[1765812620146,0.24191332,86808.0,86794.0,0.0742]
[1765812620147,0.01151967,86808.0,86794.0,0.0742]
[1765812620384,0.2907,86819.0,86796.0,0.01152126]
[1765812620385,0.01151874,86815.0,86796.0,0.01152126]
[1765812620599,0.01151927,86811.0,86797.0,0.00739272]
[1765812620820,0.01151914,86812.0,86798.0,0.02471057]
[1765812621092,0.01151808,86820.0,86799.0,0.02304174]
[1765812621338,0.01151649,86832.0,86814.0,0.01151887]
[1765812621635,0.1152,86835.0,86819.0,0.01151821]
[1765812621882,0.01868,86852.0,86819.0,0.01151821]
[1765812621883,0.24182553,86840.0,86831.0,0.03409]
[1765812622091,0.1152,86837.0,86832.0,0.01868]
[1765812622351,0.01151728,86826.0,86818.0,0.03409]
[1765812622522,0.001,86832.0,86821.0,0.00161287]
[1765812622700,0.1152,86825.0,86821.0,0.00161287]
[1765812622896,0.01151861,86816.0,86808.0,0.0742]
[1765812623096,0.001,86812.0,86809.0,0.0261]
[1765812623307,0.23031583,86838.0,86820.0,0.01151808]
[1765812623472,0.24182266,86841.0,86821.0,0.0417159]
[1765812623680,0.23035633,86823.0,86821.0,0.00161287]
[1765812623877,0.01151688,86829.0,86822.0,0.01868]
[1765812624193,0.2907,86851.0,86822.0,0.01868]
[1765812624194,0.1152,86826.0,86822.0,0.02029287]
[1765812624394,0.0115149,86844.0,86830.0,0.01151675]
[1765812624592,0.23029478,86846.0,86830.0,0.01151675]
[1765812624593,0.01151556,86839.0,86830.0,0.00161287]
[1765812624845,0.01151635,86833.0,86830.0,0.00161287]
[1765812625021,0.01151569,86838.0,86830.0,0.00161287]
[1765812625186,0.0115149,86844.0,86830.0,0.00161287]
[1765812625390,0.34548058,86851.0,86833.0,0.01151635]
[1765812625391,0.0115141,86850.0,86833.0,0.01151635]
[1765812625595,0.01151224,86864.0,86843.0,0.01151503]
[1765812625793,0.00025292,86875.0,86863.0,0.03409]
[1765812626100,0.00025292,86875.0,86864.0,0.03019224]
[1765812626324,0.01151132,86871.0,86865.0,0.00774079]
[1765812626526,0.00025292,86875.0,86865.0,0.00774079]
[1765812626527,0.01176371,86875.0,86865.0,0.00935366]
[1765812626687,0.24174608,86869.0,86866.0,0.0742]
[1765812626890,0.01176371,86875.0,86866.0,0.0742]
[1765812627093,0.00025292,86875.0,86873.0,0.23022014]
[1765812627306,0.00025292,86875.0,86874.0,0.05341252]
[1765812627516,0.00025292,86875.0,86874.0,0.10459068]
[1765812627718,0.01150814,86895.0,86879.0,0.01151026]
[1765812628030,0.01150721,86902.0,86894.0,0.03409]
[1765812628233,0.24166326,86898.0,86895.0,0.04169628]
[1765812628458,0.23016012,86897.0,86896.0,0.03383992]
[1765812628708,0.01150708,86903.0,86896.0,0.02029287]
[1765812628915,0.05745009,86930.0,86903.0,0.01150708]
[1765812629071,0.2301337,86906.0,86903.0,0.00161287]
[1765812629271,0.01150747,86900.0,86881.0,0.05001839]
[1765812629474,0.23016284,86895.0,86894.0,0.01864]
[1765812629838,0.01151105,86873.0,86866.0,0.02302396]
[1765812630062,0.01151092,86874.0,86867.0,0.01390548]
[1765812630063,0.01151171,86868.0,86867.0,0.01390548]
[1765812630269,0.01151052,86877.0,86867.0,0.08785]
[1765812630397,0.49686511,86890.0,86868.0,0.01864]
[1765812630398,0.01151145,86870.0,86868.0,0.01864]
[1765812630620,0.01151132,86871.0,86865.0,0.00774079]
[1765812630820,0.24173534,86872.0,86866.0,0.01864]
[1765812631030,0.23023354,86869.0,86867.0,0.00604708]
[1765812631235,0.23023354,86869.0,86867.0,0.02468708]
[1765812631443,0.23023437,86868.0,86867.0,0.00604708]
[1765812631644,0.23023437,86868.0,86849.0,0.02302847]
[1765812631645,0.01151357,86854.0,86844.0,0.07173]
[1765812631815,0.01151423,86849.0,86845.0,0.02145991]
[1765812632022,0.01151516,86842.0,86833.0,0.09476271]
[1765812632232,0.01151503,86843.0,86840.0,0.03152527]
[1765812632455,0.01151357,86854.0,86840.0,0.10486814]
[1765812632665,0.01151105,86873.0,86856.0,0.0115133]
[1765812632875,0.01151132,86871.0,86857.0,0.04166635]
[1765812633077,0.01151118,86872.0,86858.0,0.0066306]
[1765812633282,0.01151065,86876.0,86859.0,0.02302582]
[1765812633283,0.01151092,86874.0,86859.0,0.02302582]
[1765812633492,0.2907,86889.0,86859.0,0.09636869]
[1765812633493,0.23023702,86867.0,86859.0,0.09636869]
[1765812633728,0.01151277,86860.0,86854.0,0.02302714]
[1765812633970,0.01151277,86860.0,86855.0,0.01864]
[1765812634177,0.01151238,86863.0,86855.0,0.01864]
[1765812634385,0.01151238,86863.0,86855.0,0.09198287]
[1765812634585,0.01151238,86863.0,86856.0,0.00919829]
[1765812634794,0.23026214,86858.0,86856.0,0.00919829]
[1765812635021,0.23026088,86858.0,86856.0,0.00919829]
[1765812635259,0.23032717,86833.0,86825.0,0.07173]
[1765812635485,0.01151609,86835.0,86832.0,0.01864]
[1765812635486,0.23032636,86834.0,86832.0,0.01864]
[1765812635694,0.24184067,86835.0,86811.0,0.01151927]
[1765812635695,0.01151635,86833.0,86816.0,0.03514]
[1765812635900,0.24189768,86814.0,86800.0,0.00285732]
[1765812636140,0.23034636,86826.0,86800.0,0.00285732]
[1765812636141,0.23035746,86822.0,86807.0,0.0115198]
[1765812636349,0.01151688,86829.0,86807.0,0.00161287]
[1765812636520,0.01151702,86828.0,86825.0,0.03514]
[1765812636720,0.01151649,86832.0,86826.0,0.01864]
[1765812636954,0.23034044,86828.0,86826.0,0.01864]
[1765812637133,0.49686511,86836.0,86826.0,0.01864]
[1765812637334,0.01151688,86829.0,86826.0,0.01864]
[1765812637629,0.01151675,86830.0,86826.0,0.01864]
[1765812637801,0.24185188,86830.0,86826.0,0.01864]
[1765812637999,0.01151635,86833.0,86826.0,0.01864]
[1765812638000,0.01151556,86839.0,86826.0,0.02025287]
[1765812638230,0.01151516,86842.0,86827.0,0.09909442]
[1765812638364,0.03450755,86878.0,86847.0,0.03514]
[1765812638563,0.03450755,86878.0,86848.0,0.01864]
[1765812638564,0.0115133,86856.0,86848.0,0.01864]
[1765812638763,0.01151277,86860.0,86848.0,0.02025287]
[1765812638764,0.01151357,86854.0,86848.0,0.02025287]
[1765812638974,0.01151344,86855.0,86848.0,0.02025287]
[1765812639179,0.01151198,86866.0,86850.0,0.0115141]
[1765812639478,0.0115137,86853.0,86850.0,0.00161287]
[1765812639709,0.01151277,86860.0,86850.0,0.00161287]
[1765812639917,0.07191,86877.0,86851.0,0.01864]
[1765812639918,0.23026172,86858.0,86851.0,0.01864]
[1765812640153,0.23028209,86850.0,86849.0,0.0138638]
[1765812640443,0.01151516,86842.0,86839.0,0.03514]
[1765812640658,0.01151251,86862.0,86845.0,0.01151476]
[1765812640811,0.0115137,86853.0,86850.0,0.002]
[1765812640973,0.01151277,86860.0,86850.0,0.00361287]
[1765812641193,0.001,86858.0,86850.0,0.00361287]
[1765812641404,0.001,86858.0,86851.0,0.01864]
[1765812641602,0.001,86858.0,86854.0,0.01151357]
[1765812641807,0.001,86858.0,86855.0,0.03593763]
[1765812642025,0.24177952,86857.0,86854.0,0.00161287]
[1765812642225,0.24177952,86857.0,86850.0,0.002]
[1765812642226,0.23027815,86852.0,86850.0,0.002]
[1765812642493,0.001,86858.0,86850.0,0.002]
[1765812642494,0.01151264,86861.0,86851.0,0.01864]
[1765812642657,0.23027481,86853.0,86851.0,0.01864]
[1765812642847,0.23029005,86847.0,86840.0,0.01422924]
[1765812643020,0.23029005,86847.0,86844.0,0.01864]
[1765812643222,0.23029535,86845.0,86844.0,0.01864]
[1765812643447,0.23030861,86840.0,86839.0,0.004]
[1765812643647,0.23030596,86841.0,86839.0,0.02264]
[1765812643858,0.23030596,86841.0,86839.0,0.004]
[1765812644071,0.23030596,86841.0,86834.0,0.01864]
[1765812644291,0.01151529,86841.0,86834.0,0.01864]
[1765812644462,0.01151516,86842.0,86834.0,0.01864]
[1765812644463,0.24180372,86848.0,86846.0,0.003]
[1765812645077,0.1152,86847.0,86846.0,0.003]
[1765812645279,0.01151423,86849.0,86846.0,0.003]
[1765812645473,0.23028924,86848.0,86846.0,0.003]
[1765812645670,0.01151423,86849.0,86846.0,0.003]
[1765812646075,0.0115145,86847.0,86844.0,0.03613]
[1765812646412,0.01151503,86843.0,86841.0,0.03613]
[1765812646742,0.01151277,86860.0,86842.0,0.03615836]
[1765812646875,0.01151264,86861.0,86848.0,0.01151436]
[1765812647076,0.01151224,86864.0,86850.0,0.0115141]
[1765812647301,0.01151238,86863.0,86851.0,0.02302794]
[1765812647518,0.2302724,86854.0,86852.0,0.07231]
[1765812647702,0.01151211,86865.0,86853.0,0.0106811]
[1765812647902,0.01151211,86865.0,86853.0,0.01229397]
[1765812648103,0.01151277,86860.0,86854.0,0.07231]
[1765812648323,0.01151277,86860.0,86854.0,0.07392287]
[1765812648500,0.1152,86877.0,86854.0,0.08543644]
[1765812648702,0.01150933,86886.0,86877.0,0.03613]
[1765812648905,0.05776293,86908.0,86877.0,0.03613]
[1765812648906,0.0115088,86890.0,86878.0,0.01864]
[1765812649103,0.05205897,86909.0,86878.0,0.01864]
[1765812649104,0.0115084,86893.0,86880.0,0.01151012]
[1765812649311,0.01150787,86897.0,86882.0,0.00161287]
[1765812649536,0.01150655,86907.0,86893.0,0.23016618]
[1765812649686,0.01150602,86911.0,86895.0,0.23016057]
[1765812649888,0.01150575,86913.0,86910.0,0.00161287]
[1765812650083,0.01150536,86916.0,86911.0,0.01864]
[1765812650299,0.23009399,86921.0,86915.0,0.03514]
[1765812650687,0.24160712,86918.0,86916.0,0.01277029]
[1765812651140,0.01150417,86925.0,86917.0,0.01864]
[1765812651354,0.03450755,86946.0,86917.0,0.01864]
[1765812651355,0.01150469,86921.0,86918.0,0.01864]
[1765812651555,0.1152,86938.0,86922.0,0.01150456]
[1765812651556,0.01150245,86938.0,86922.0,0.01150456]
[1765812651726,0.01150403,86926.0,86923.0,0.07231]
[1765812652030,0.01150337,86931.0,86924.0,0.00969328]
[1765812652031,0.23006879,86931.0,86924.0,0.00969328]
[1765812652232,0.01150337,86931.0,86924.0,0.00969328]
[1765812652461,0.0115035,86930.0,86923.0,0.01864]
[1765812652699,0.23141045,86925.0,86923.0,0.01864]
[1765812652909,0.01150403,86926.0,86923.0,0.01864]
[1765812653111,0.0115035,86930.0,86918.0,0.00161287]
[1765812653112,0.01150284,86935.0,86924.0,0.09095]
[1765812653325,0.23004368,86941.0,86924.0,0.07392287]
[1765812653530,0.06338445,86964.0,86924.0,0.07392287]
[1765812653531,0.23000761,86954.0,86934.0,0.01150297]
[1765812653740,0.23001347,86952.0,86936.0,0.24155484]
[1765812653949,0.23000974,86953.0,86937.0,0.27169468]
[1765812654168,0.01149914,86963.0,86938.0,0.02461777]
[1765812654365,0.01149914,86963.0,86938.0,0.09692777]
[1765812654366,0.01149927,86962.0,86938.0,0.09692777]
[1765812654572,0.03393,86984.0,86938.0,0.19437663]
[1765812654573,0.01150125,86947.0,86938.0,0.19437663]
[1765812654773,0.01150139,86946.0,86938.0,0.11556777]
[1765812654974,0.23002578,86947.0,86938.0,0.09256287]
[1765812654975,0.01150165,86944.0,86938.0,0.09256287]
[1765812655187,0.01150046,86953.0,86938.0,0.09256287]
[1765812655399,0.01149887,86965.0,86938.0,0.39563516]
[1765812655606,0.01149927,86962.0,86938.0,0.37263026]
[1765812655811,0.01149834,86969.0,86938.0,0.37263026]
[1765812656010,0.01149702,86979.0,86938.0,0.37263026]
[1765812656223,0.01149782,86973.0,86959.0,0.01149967]
[1765812656437,0.01149583,86988.0,86972.0,0.04700795]
[1765812656645,0.01149729,86977.0,86973.0,0.01864]
[1765812656840,0.01149649,86983.0,86974.0,0.02299537]
[1765812657049,0.01149544,86991.0,86975.0,0.10006421]
[1765812657225,0.01149663,86982.0,86976.0,0.02249188]
[1765812657407,0.01149491,86995.0,86982.0,0.01149663]
[1765812657609,0.01149372,87004.0,86994.0,0.03533]
[1765812657809,0.01189346,87006.0,86994.0,0.03533]
[1765812657810,0.0004,87006.0,87005.0,0.03533]
[1765812658129,0.0004,87006.0,87005.0,0.03694287]
[1765812658333,0.0004,87006.0,86994.0,0.10764]
[1765812658334,0.01149464,86997.0,86994.0,0.10764]
[1765812658532,0.22989562,86996.0,86995.0,0.01864]
[1765812658698,0.24138774,86997.0,86995.0,0.09095]
[1765812658914,0.22988769,86999.0,86995.0,0.09095]
[1765812658915,0.01149438,86999.0,86996.0,0.07231]
[1765812659116,0.0035673,86996.0,86994.0,0.046094]
[1765812659387,0.01149451,86998.0,86995.0,0.01864]
[1765812659593,0.00353577,86995.0,86994.0,0.03533]
[1765812659793,0.00353577,86995.0,86994.0,0.07857296]
[1765812660007,0.0024,87006.0,86994.0,0.07857296]
[1765812660008,0.0024,87006.0,87003.0,0.01149385]
[1765812660232,0.0002,87016.0,87014.0,0.27986646]
[1765812660464,0.01148817,87046.0,87029.0,0.01149042]
[1765812660670,0.22976058,87048.0,87035.0,0.03259287]
[1765812660883,0.22985396,87050.0,87035.0,0.03259287]
[1765812660884,0.0001,87050.0,87047.0,0.01148804]
[1765812661089,0.01148567,87065.0,87044.0,0.01148844]
[1765812661090,0.24120606,87063.0,87049.0,0.00161287]
[1765812661292,0.01148659,87058.0,87050.0,0.10982184]
[1765812661501,0.01148725,87053.0,87050.0,0.07392287]
[1765812661698,0.22974773,87052.0,87050.0,0.07392287]
[1765812661922,0.22974773,87052.0,87051.0,0.01864]
[1765812662056,0.22974773,87052.0,87034.0,0.01148976]
[1765812662057,0.22978733,87037.0,87031.0,0.02298031]
[1765812662261,0.22978733,87037.0,87029.0,0.03456]
[1765812662262,0.01148976,87034.0,87029.0,0.03456]
[1765812662463,0.22980317,87031.0,87030.0,0.01864]
[1765812662728,0.22980317,87031.0,87030.0,0.09208]
[1765812662953,0.22980317,87031.0,87030.0,0.01864]
[1765812663345,0.01148976,87034.0,87030.0,0.09208]
[1765812663490,0.24128778,87033.0,87031.0,0.012664]
[1765812663687,0.22980317,87031.0,87030.0,0.07344]
[1765812663896,0.24128778,87033.0,87030.0,0.09204]
[1765812664103,0.24128778,87033.0,87030.0,0.0186]
[1765812664328,0.01148857,87043.0,87031.0,0.07344]
[1765812664525,0.24121329,87060.0,87047.0,0.01148804]
[1765812664728,0.0004,87075.0,87048.0,0.0186]
[1765812664729,0.22975565,87049.0,87048.0,0.0186]
[1765812664988,0.22978408,87039.0,87036.0,0.02297899]
[1765812665167,0.22978408,87039.0,87030.0,0.001]
[1765812665168,0.01148791,87048.0,87037.0,0.0283419]
[1765812665386,0.01148963,87035.0,87030.0,0.001]
[1765812665667,0.52050317,87031.0,87030.0,0.001]
[1765812665845,0.63570317,87031.0,87030.0,0.001]
[1765812666047,0.59182317,87031.0,87030.0,0.001]
[1765812666411,0.52050317,87031.0,87030.0,0.001]
[1765812666612,0.24127392,87038.0,87030.0,0.001]
[1765812666613,0.01148949,87036.0,87030.0,0.001]
[1765812667072,0.01148897,87040.0,87030.0,0.00161287]
[1765812667283,0.2298025,87032.0,87031.0,0.04152646]
[1765812667487,0.01148738,87052.0,87031.0,0.08654302]
[1765812667782,0.01148633,87060.0,87047.0,0.22975853]
[1765812667969,0.01148646,87059.0,87048.0,0.04157582]
[1765812668182,0.01148501,87070.0,87057.0,0.01148672]
[1765812668358,0.01148329,87083.0,87068.0,0.01148527]
[1765812668555,0.37835507,87102.0,87069.0,0.09204]
[1765812668556,0.01188435,87075.0,87069.0,0.09204]
[1765812668742,0.01148461,87073.0,87070.0,0.01395949]
[1765812669108,0.2296976,87071.0,87070.0,0.01395949]
[1765812669323,0.01148593,87063.0,87054.0,0.01148712]
[1765812669510,0.0114858,87064.0,87055.0,0.04157398]
[1765812669663,0.01148659,87058.0,87055.0,0.04157398]
[1765812669869,0.2297323,87058.0,87056.0,0.02297371]
[1765812670072,0.24121889,87058.0,87057.0,0.00980266]
[1765812670293,0.003,87059.0,87057.0,0.0186]
[1765812670510,0.22973111,87059.0,87057.0,0.0186]
[1765812670686,0.22975829,87048.0,87046.0,0.07344]
[1765812670888,0.001,87059.0,87036.0,0.07344]
[1765812671156,0.2412732,87039.0,87037.0,0.03262218]
[1765812671429,0.01149068,87027.0,87015.0,0.01149227]
[1765812671631,0.01148936,87037.0,87026.0,0.03456]
[1765812671931,0.01148883,87041.0,87029.0,0.01149042]
[1765812672129,0.003,87059.0,87034.0,0.01148976]
[1765812672274,0.003,87059.0,87030.0,0.04848376]
[1765812672275,0.01148738,87052.0,87030.0,0.09183347]
[1765812672477,0.003,87059.0,87054.0,0.01148712]
[1765812672478,0.002,87059.0,87054.0,0.01148712]
[1765812672719,0.002,87059.0,87055.0,0.03008699]
[1765812672923,0.002,87059.0,87057.0,0.22973305]
[1765812673133,0.002,87059.0,87058.0,0.09641319]
[1765812673462,0.01148791,87048.0,87045.0,0.07344]
[1765812673668,0.01148804,87047.0,87046.0,0.0186]
[1765812673871,0.01148949,87036.0,87030.0,0.00851605]
[1765812674115,0.001,87037.0,87030.0,0.00851605]
[1765812674316,0.0114891,87039.0,87031.0,0.09874577]
[1765812674526,0.01148976,87034.0,87031.0,0.00670577]
[1765812674790,0.01148936,87037.0,87032.0,0.04158005]
[1765812675007,0.91828483,87050.0,87002.0,0.01149398]
[1765812675198,0.01149187,87018.0,87005.0,0.07344]
[1765812675441,0.01148976,87034.0,87006.0,0.31368692]
[1765812675629,0.22980397,87031.0,87018.0,0.01149187]
[1765812675845,0.01149068,87027.0,87019.0,0.0186]
[1765812676011,0.2907,87050.0,87021.0,0.01149147]
[1765812676215,0.50099999,87080.0,87021.0,0.01149147]
[1765812676216,0.01148857,87043.0,87029.0,0.22980651]
[1765812676410,0.01148831,87045.0,87029.0,0.22980651]
[1765812676411,0.01148831,87045.0,87035.0,0.01148963]
[1765812676618,0.62758483,87080.0,87044.0,0.03456]
[1765812676827,0.01148395,87078.0,87066.0,0.01148553]
[1765812677122,0.01148211,87092.0,87072.0,0.24117817]
[1765812677323,0.22964642,87091.0,87073.0,0.32609904]
[1765812677636,0.0186,87113.0,87074.0,0.05163126]
[1765812677637,0.01148316,87084.0,87074.0,0.05163126]
[1765812677844,0.01148342,87082.0,87074.0,0.09365287]
[1765812678000,0.00292161,87075.0,87074.0,0.3963299]
[1765812678202,0.00292161,87075.0,87074.0,0.37336094]
[1765812678686,0.00292161,87075.0,87074.0,0.77530097]
[1765812678820,0.0092247,87087.0,87086.0,0.22965803]
[1765812679019,0.00801752,87087.0,87086.0,0.77526932]
[1765812679497,0.5,87112.0,87111.0,0.05001839]
[1765812679647,0.5,87112.0,87111.0,0.19601047]
[1765812679851,0.22957104,87119.0,87112.0,0.05001839]
[1765812680053,0.22958103,87116.0,87114.0,0.05001839]
[1765812680258,0.22957895,87116.0,87114.0,0.05001839]
[1765812680457,0.0002,87120.0,87116.0,0.05001839]
[1765812680625,0.0002,87120.0,87118.0,0.05001839]
[1765812680825,0.0002,87120.0,87119.0,0.07297549]
[1765812681024,0.22958949,87112.0,87111.0,0.02938]
[1765812681306,0.22958949,87112.0,87111.0,0.04798]
[1765812681417,0.22958685,87113.0,87111.0,0.04798]
[1765812681661,0.22958685,87113.0,87112.0,0.012142]
[1765812681865,0.01147921,87114.0,87111.0,0.04798]
[1765812682068,0.0002,87120.0,87116.0,0.22957817]
[1765812682266,0.0002,87120.0,87117.0,0.02295763]
[1765812682514,0.0002,87120.0,87111.0,0.04998]
[1765812682515,0.24106552,87114.0,87111.0,0.04798]
[1765812682713,0.22958949,87112.0,87111.0,0.04798]
[1765812683143,0.0002,87120.0,87112.0,0.36414]
[1765812683379,0.01147855,87119.0,87113.0,0.05001839]
[1765812683583,0.0002,87120.0,87119.0,0.05163126]
[1765812683795,0.01147288,87162.0,87141.0,0.01147565]
[1765812684009,0.0004,87164.0,87152.0,0.0114742]
[1765812684213,0.0004,87164.0,87163.0,0.03436]
[1765812684430,0.0004,87164.0,87163.0,0.05457287]
[1765812684630,0.0004,87164.0,87163.0,0.12801287]
[1765812685038,0.22985252,87164.0,87163.0,0.0186]
[1765812685168,0.00320113,87164.0,87163.0,0.0186]
[1765812685574,0.23265365,87164.0,87163.0,0.0186]
[1765812685972,0.22947622,87155.0,87154.0,0.02294788]
[1765812686178,0.01147394,87154.0,87148.0,0.0186]
[1765812686375,0.01147367,87156.0,87148.0,0.0186]
[1765812686376,0.22949201,87149.0,87148.0,0.0186]
[1765812686801,0.01147315,87160.0,87150.0,0.01147446]
[1765812687036,0.22948675,87151.0,87148.0,0.0186]
[1765812687342,0.24100217,87137.0,87134.0,0.03436]
[1765812687487,0.22952362,87137.0,87135.0,0.09204]
[1765812687690,0.01147631,87136.0,87133.0,0.0186]
[1765812687912,0.241004,87136.0,87133.0,0.0186]
[1765812688091,0.22953102,87135.0,87133.0,0.0186]
[1765812688293,0.2907,87144.0,87133.0,0.0186]
[1765812688493,0.22953112,87135.0,87133.0,0.0186]
[1765812688693,0.01147473,87148.0,87134.0,0.08491657]
[1765812688894,0.01147552,87142.0,87134.0,0.07344]
[1765812689135,0.01147578,87140.0,87133.0,0.0186]
[1765812689331,0.01147473,87148.0,87138.0,0.01147604]
[1765812689532,0.01147381,87155.0,87142.0,0.01147552]
[1765812689807,0.01147354,87157.0,87142.0,0.02295104]
[1765812690075,0.24094152,87159.0,87146.0,0.01147499]
[1765812690208,0.229465,87160.0,87149.0,0.0114746]
[1765812690408,0.01147381,87155.0,87147.0,0.01856]
[1765812690615,0.01147446,87150.0,87147.0,0.01856]
[1765812690836,0.01147446,87150.0,87135.0,0.01147644]
[1765812690837,0.24097395,87147.0,87139.0,0.01856]
[1765812691041,0.22951572,87140.0,87139.0,0.01856]
[1765812691510,0.22952889,87135.0,87134.0,0.001]
[1765812691729,0.24100234,87137.0,87134.0,0.001]
[1765812691910,0.22952856,87136.0,87134.0,0.001]
[1765812692129,0.22953152,87134.0,87133.0,0.01]
[1765812692715,0.34473152,87134.0,87133.0,0.01]
[1765812692914,0.22953152,87134.0,87133.0,0.01]
[1765812693121,0.70853152,87134.0,87133.0,0.01]
[1765812693333,0.70853152,87134.0,87133.0,0.012]
[1765812693589,0.70853152,87134.0,87133.0,0.01045278]
[1765812694000,0.01148066,87103.0,87085.0,0.03259]
[1765812694229,0.01148224,87091.0,87088.0,0.00161287]
[1765812694434,0.01148184,87094.0,87088.0,0.00161287]
[1765812694650,0.02815156,87147.0,87099.0,0.01148118]
[1765812694851,0.26400057,87135.0,87119.0,0.01147855]
[1765812695021,0.0114767,87133.0,87120.0,0.04794]
[1765812695364,0.01147763,87126.0,87120.0,0.01856]
[1765812695498,0.01147723,87129.0,87120.0,0.01856]
[1765812695499,0.22956512,87122.0,87120.0,0.01856]
[1765812695709,0.01148,87108.0,87100.0,0.05001839]
[1765812695931,0.01148,87108.0,87099.0,0.07231287]
[1765812695932,0.24109245,87104.0,87101.0,0.01856]
[1765812696087,0.01148,87108.0,87101.0,0.01856]
[1765812696472,0.01147921,87114.0,87105.0,0.01148039]
[1765812696723,0.2907,87123.0,87116.0,0.01147894]
[1765812696928,0.01147117,87175.0,87161.0,0.01147302]
[1765812697181,0.03446988,87179.0,87162.0,0.24801593]
[1765812697395,0.03446988,87179.0,87155.0,0.01147381]
[1765812697396,0.22944696,87167.0,87163.0,0.04150551]
[1765812697608,0.01147236,87166.0,87163.0,0.01856]